Cogmind - Beta 10.2 @@@ ROGUE MODE // 2020.12.13 @ 14:39:03 Player: kerapace Result: Destroyed by G-34 Mercenary with Small Laser Performance ------------- Evolutions (1) 500 Regions Visited (4) 800 Robots Destroyed (72) 360 Value Destroyed (1963) 1963 Prototype IDs (5) 100 Alien Tech Used (0) 0 Bonus (174) 174 TOTAL SCORE: 3897 Bonus ------- High Alert Combat Kills 149 Follower Combat Kills 25 Cogmind --------- Core Integrity 0/400 Matter 300/300 Energy 280/280 System Corruption 0% Temperature Cool (6) Movement Walking (150) Ox1 Location -9/Storage Parts ------- > --- POWER (1) -------- Heavy Ion Engine > --- PROPULSION (3) --- Improved Treads Aluminum Leg Aluminum Leg > --- UTILITY (3) ------ Large Storage Unit Medium Armor Plating > --- WEAPON (2) ------- Improved Assault Rifle Mining Claw > --- INVENTORY (10) --- Disposable Heat Sink Large Storage Unit Armor Integrity Analyzer Shield Generator Bomb Drone Bay (16/16) Advanced Beam Cannon Grenade Launcher Rocket Launcher Mining Claw Peak State ------------ > --- POWER ------------ Heavy Ion Engine > --- PROPULSION ------- Light Treads Improved Treads Armored Wheel > --- UTILITY ---------- Large Storage Unit Large Storage Unit Medium Armor Plating > --- WEAPON ----------- Improved Assault Rifle Improved Assault Rifle > --- INVENTORY -------- Aluminum Leg Disposable Heat Sink Large Storage Unit Armor Integrity Analyzer Medium Armor Plating Medium Armor Plating Shield Generator Bomb Drone Bay Improved EM Shotgun Advanced Beam Cannon Improved Assault Rifle Grenade Launcher Rocket Launcher Mining Claw Mining Claw [Rating: 22] Favorites ----------- Power Ion Engine Engine Ion Engine Propulsion Light Treads Treads Light Treads Leg Aluminum Leg Wheel Armored Wheel Utility Large Storage Unit Device Improved Heat Sink Storage Large Storage Unit Protection Medium Armor Plating Weapon Assault Rifle Energy Gun Medium Laser Energy Cannon Advanced Beam Cannon Ballistic Gun Assault Rifle Launcher Rocket Launcher Slashing Weapon Mining Claw Build | -11 -10 -10 -9 -9 ------- Run | Scr Mat Min Mat Sto Slots Evolved 2 | . . . 2 . Power . | . . . . . Propulsion 1 | . . . 1 . Utility 1 | . . . 1 . Weapon . | . . . . . Parts Attached 64 | 6 15 3 6 34 Power 7 | 1 3 . 1 2 Engine 7 | 1 3 . 1 2 Core . | . . . . . Reactor . | . . . . . Propulsion 18 | 2 4 . 3 9 Treads 11 | 1 2 . 3 5 Leg 3 | . . . . 3 Wheel 4 | 1 2 . . 1 Hover . | . . . . . Flight . | . . . . . Utility 12 | 1 2 3 2 4 Device 3 | . . 1 2 . Storage 5 | 1 2 2 . . Processor . | . . . . . Hackware . | . . . . . Protection 4 | . . . . 4 Artifact . | . . . . . Weapon 27 | 2 6 . . 19 Energy Gun 4 | 1 2 . . 1 Energy Cannon 2 | . . . . 2 Ballistic Gun 11 | 1 2 . . 8 Ballistic Cannon . | . . . . . Launcher 7 | . 2 . . 5 Special Weapon . | . . . . . Impact Weapon . | . . . . . Slashing Weapon 3 | . . . . 3 Piercing Weapon . | . . . . . Special Melee Weapon . | . . . . . Unidentified Prototypes 3 | . . 1 . 2 Parts Lost 10 | . 2 . . 8 Power 1 | . 1 . . . Propulsion 4 | . . . . 4 Utility 3 | . . . . 3 Weapon 2 | . 1 . . 1 Highest Loss Streak 5 | . 1 . . 5 Average Slot Usage (%) 95 | . 88 99 100 96 Engine 12 | . 13 14 11 11 Treads 17 | . 15 14 22 20 Wheel 11 | . 12 14 11 9 Device 2 | . . . 11 2 Storage 22 | . 17 27 22 22 Protection 2 | . . . . 8 Energy Gun 5 | . 20 . . 1 Ballistic Gun 17 | . 7 28 22 14 Naked Turns . | . . . . . Heaviest Build 54 | 10 41 41 45 54 Greatest Support 43 | 20 40 20 40 43 Greatest Overweight (x) 5 | 1 3 3 3 5 Average Overweight (x) 2 | . . 2 2 2 Largest Inventory Capacity 16 | 6 16 16 16 16 Average Capacity 13 | 5 8 15 16 15 Most Carried 16 | 4 16 16 16 16 Average Carried 13 | 2 7 15 15 15 Final Capacity 16 | 6 16 16 16 10 Final Carried 16 | 4 16 16 16 10 Class Distribution -------------------- 98% | Mutant Dominant Class ---------------- Mutant | -10/Materials Mutant | -10/Mines Mutant | -9/Materials Mutant | -9/Storage Resources | -11 -10 -10 -9 -9 ----------- Run | Scr Mat Min Mat Sto Matter Collected 1502 | 235 227 54 278 708 Remotely . | . . . . . Salvage Created 2368 | . 480 101 526 1261 Parts 157 | . 36 6 28 87 Haulers Intercepted 4 | . 2 . 1 1 Recyclers Shooed 4 | . 2 . 1 1 Parts Field Recycled . | . . . . . Retrieved Matter . | . . . . . Parts Self-Destructed . | . . . . . Prevented . | . . . . . Kills | -11 -10 -10 -9 -9 ------- Run | Scr Mat Min Mat Sto Combat Hostiles Destroyed 56 | . 12 2 8 34 Melee 7 | . . . . 7 Guns 32 | . 9 2 8 13 Cannons 4 | . . . . 4 AOE 12 | . 2 . . 10 Classes Destroyed 12 | . 6 . 1 5 Worker 4 | . 3 . 1 . Builder 2 | . . . . 2 Hauler 4 | . 2 . 1 1 Recycler 1 | . . . . 1 Operator 3 | . 1 . . 2 Watcher 2 | . 1 . 1 . Swarmer 9 | . 6 . . 3 Grunt 38 | . 6 2 4 26 Brawler 1 | . . . . 1 Duelist 1 | . . . . 1 Protector 1 | . . . . 1 Sentry 6 | . . . 4 2 Best Kill Streak 8 | . 4 2 4 8 Combat Bots Only 7 | . 3 2 3 7 Max Kills in Single Turn 4 | . 3 1 2 4 Gunslinging . | . . . . . Exploded 4 | . 1 . . 4 Melee 1 | . . . . 1 Uniques/NPCs Destroyed . | . . . . . Combat | -11 -10 -10 -9 -9 -------- Run | Scr Mat Min Mat Sto Damage Taken 3046 | . 355 39 375 2277 Core 447 | . 39 3 75 330 Absorbed by Shields . | . . . . . Core Remaining (%) 91 | 100 . 83 . . Volleys Fired 161 | . 50 4 38 69 Largest 2 | . 2 2 2 2 Hottest 100 | . 100 40 40 91 Shots Fired 315 | . 99 8 76 132 Gun 287 | . 96 8 76 107 Cannon 13 | . . . . 13 Launcher 15 | . 3 . . 12 Special . | . . . . . Kinetic 186 | . 12 8 76 90 Thermal 114 | . 84 . . 30 Explosive 15 | . 3 . . 12 Electromagnetic . | . . . . . Robot Hit Streak 28 | . 21 3 13 28 Robot Miss Streak 3 | . 3 1 3 3 Penetration Max . | . . . . . Secondary Targets 2 | . . . . 2 Max Gunslinging Chain 1 | . . . . 1 Shots Hit Robots 248 | . 64 5 56 123 Core Hits 122 | . 32 5 21 64 Critical Hits 5 | . . . 1 4 Critical Kills 2 | . . . 1 1 Critical Parts Destroyed 3 | . . . . 3 Melee Attacks 36 | . . . . 36 Impact . | . . . . . Slashing 36 | . . . . 36 Piercing . | . . . . . Sneak Attacks 2 | . . . . 2 Combat Hostiles . | . . . . . Follow-up Attacks . | . . . . . Damage Inflicted 4781 | . 1007 69 722 2983 Guns 2714 | . 808 63 722 1121 Cannons 225 | . . . . 225 Explosions 1159 | . 199 . . 960 Melee 677 | . . . . 677 Ramming 6 | . . 6 . . Kinetic 1851 | . 120 63 722 946 Thermal 1088 | . 688 . . 400 Explosive 1159 | . 199 . . 960 Electromagnetic . | . . . . . Impact . | . . . . . Slashing 677 | . . . . 677 Piercing . | . . . . . Highest Corruption . | . . . . . Average Corruption . | . . . . . Corruption Purged . | . . . . . Overload Shots . | . . . . . Overflow Damage 12 | . 10 . . 2 Projectiles 2 | . . . . 2 Explosions 10 | . 10 . . . Melee . | . . . . . Knockbacks . | . . . . . Impact . | . . . . . Kinetic . | . . . . . Secondary . | . . . . . Self-Inflicted Damage 6 | . 3 3 . . Shots 1 | . 1 . . . Rammed 1 | . . 1 . . Targets Rammed 1 | . . 1 . . Kicked . | . . . . . Crushed . | . . . . . Highest Temperature 397 | . 356 2 . 397 Average Temperature 121 | . 101 2 . 149 Received Heat Transfer 1287 | . 165 21 138 963 Effects 5 | . 1 . . 4 Shutdowns 1 | . . . . 1 Energy Bleed 2 | . 1 . . 1 Interference 2 | . . . . 2 Siege Activations . | . . . . . Robots Corrupted . | . . . . . Combat Hostiles . | . . . . . Parts Fried . | . . . . . Impact Corruptions . | . . . . . Robots Melted 1 | . 1 . . . Combat Hostiles 1 | . 1 . . . Parts Melted 8 | . 7 . . 1 Heat Transferred 2950 | . 2035 . . 915 Parts Sabotaged . | . . . . . Parts Stolen . | . . . . . Parts Stripped . | . . . . . Power Chain Reactions . | . . . . . Missiles Intercepted . | . . . . . Alert | -11 -10 -10 -9 -9 ------- Run | Scr Mat Min Mat Sto Peak Influence 603 | . 261 151 279 603 Initial 101 | . . 101 . 33 Average 183 | . 141 63 147 363 Maximum Alert Level 2 | . 1 . 1 2 Low Security (%) 62 | 100 67 100 57 23 Level 1 22 | . 32 . 42 28 Level 2 14 | . . . . 48 Level 3 . | . . . . . Level 4 . | . . . . . Level 5 . | . . . . . High Security . | . . . . . Max Security . | . . . . . Squads Dispatched 12 | . 3 . . 9 Investigation 5 | . 2 . . 3 Extermination . | . . . . . Reinforcement 4 | . 1 . . 3 Assault 3 | . . . . 3 Garrison . | . . . . . Intercept . | . . . . . Construction Impeded 2 | . . . . 2 Haulers Reinforced . | . . . . . Stealth | -11 -10 -10 -9 -9 --------- Run | Scr Mat Min Mat Sto Distress Signals 7 | . 1 . 2 4 Communications Jammed . | . . . . . Distress Signals . | . . . . . Times Spotted 93 | . 23 2 13 55 Peak Tracking Total 10 | . 3 2 6 10 Tactical Retreats 7 | . 2 . . 5 Traps | -11 -10 -10 -9 -9 ------- Run | Scr Mat Min Mat Sto Traps Triggered 4 | . 2 . . 2 Indirectly . | . . . . . Trap Hack Attempts . | . . . . . Triggered . | . . . . . Disarmed . | . . . . . Reprogrammed . | . . . . . Reused . | . . . . . Traps Extracted . | . . . . . Installed . | . . . . . Triggered . | . . . . . Machines | -11 -10 -10 -9 -9 ---------- Run | Scr Mat Min Mat Sto Machines Disabled 3 | . . . . 3 Max in Single Turn 1 | . . . . 1 Machines Sabotaged . | . . . . . Garrisons Compromised . | . . . . . Overloaded Fab Kills . | . . . . . Fab Network Shutdowns . | . . . . . Hacking | -11 -10 -10 -9 -9 --------- Run | Scr Mat Min Mat Sto Machines Accessed 10 | . 4 1 1 4 Terminals 9 | . 4 . 1 4 Fabricators . | . . . . . Repair Stations . | . . . . . Recycling Units . | . . . . . Scanalyzers . | . . . . . Garrison Access . | . . . . . Total Hacks 24 | . 8 1 5 10 Successful 7 | . 1 1 2 3 Failed 16 | . 7 . 2 7 Catastrophic 5 | . 3 . 1 1 Database Lockouts 1 | . . . 1 . Manual 11 | . 7 . 4 . Terminals 23 | . 8 . 5 10 Fabricators . | . . . . . Repair Stations . | . . . . . Recycling Units . | . . . . . Scanalyzers . | . . . . . Garrison Access . | . . . . . Terminal Hacks 7 | . 1 1 2 3 Part Schematic 2 | . . . 1 1 Robot Analysis 1 | . . . . 1 Prototype ID Bank 1 | . 1 . . . Open Door 2 | . . 1 . 1 Hauler Manifests 1 | . . . 1 . Fabricator Hacks . | . . . . . Repair Station Hacks . | . . . . . Recycling Unit Hacks . | . . . . . Scanalyzer . | . . . . . Garrison Access Hacks . | . . . . . Unauthorized Hacks . | . . . . . Terminals . | . . . . . Fabricators . | . . . . . Repair Stations . | . . . . . Recycling Units . | . . . . . Scanalyzers . | . . . . . Garrison Access . | . . . . . Data Cores Recovered 3 | . 1 . . 2 Used 2 | . 1 . . 1 Hacking Detections 8 | . 4 . 1 3 Full Trace Events 2 | . . . . 2 Feedback Events . | . . . . . Feedback Blocked . | . . . . . Robot Schematics Acquired . | . . . . . Robots Built . | . . . . . Matter . | . . . . . Time . | . . . . . Total Robot Build Rating . | . . . . . Part Schematics Acquired 2 | . . . 1 1 Parts Built . | . . . . . Matter . | . . . . . Time . | . . . . . Total Part Build Rating . | . . . . . Parts Repaired . | . . . . . Time . | . . . . . Parts Recycled . | . . . . . Recycled Matter . | . . . . . Retrieved Matter . | . . . . . Retrieved Components . | . . . . . Parts Scanalyzed . | . . . . . Part Schematics Acquired . | . . . . . Parts Damaged . | . . . . . Bothacking | -11 -10 -10 -9 -9 ------------ Run | Scr Mat Min Mat Sto Used RIF Installer . | . . . . . Robots Hacked . | . . . . . Non-combat . | . . . . . Combat . | . . . . . Robot Hacks Applied . | . . . . . Relay Couplers Released . | . . . . . Robots Rewired . | . . . . . Allies Hacked . | . . . . . Hacks Repelled . | . . . . . Allies | -11 -10 -10 -9 -9 -------- Run | Scr Mat Min Mat Sto Total Allies 2 | . . . . 2 Largest Group 2 | . . . . 2 Highest-Rated Group 62 | . . . . 62 Highest-Rated Ally 31 | . . . . 31 Total Orders . | . . . . . Ally Attacks 11 | . . . . 11 Total Damage 171 | . . . . 171 Kills 1 | . . . . 1 Allies Corrupted . | . . . . . Allies Melted . | . . . . . Intel | -11 -10 -10 -9 -9 ------- Run | Scr Mat Min Mat Sto Robot Analysis Total 1 | . . . . 1 Derelict Logs Recovered 2 | . . 2 . . Drone Launches . | . . . . . Drone Recoveries . | . . . . . Exploration | -11 -10 -10 -9 -9 ------------- Run | Scr Mat Min Mat Sto Turns Passed 3065 | 57 785 891 406 926 Spaces Moved 1830 | 31 539 707 209 344 Core 4 | 4 . . . . Treads 299 | 24 95 13 35 132 Legs 8 | . . . . 8 Wheels 1519 | 3 444 694 174 204 Hover . | . . . . . Flight . | . . . . . Fastest Speed 50 | 50 80 90 120 120 Average Speed 123 | 142 106 121 130 150 Slowest Speed 270 | 160 200 200 180 270 Overloaded Moves . | . . . . . Propulsion Burnouts . | . . . . . Robots Hopped . | . . . . . Cave-ins Triggered . | . . . . . Exploration Rate (%) 52 | 3 87 96 31 45 Regions Visited 4 Branch Regions 2 Pre-discovered Areas 2 | . . 2 . . Known Exits Taken . | . . . . . Unknown Exits Taken 4 | 1 1 1 1 . Scrap Searched . | . . . . . Spaces Dug 4 | . 4 . . . Terrain Destroyed 80 | . 18 . . 62 Melee . | . . . . . Projectile . | . . . . . AOE 80 | . 18 . . 62 Terrain Rammed . | . . . . . Walls Destroyed . | . . . . . Machines Disabled . | . . . . . Actions | -11 -10 -10 -9 -9 --------- Run | Scr Mat Min Mat Sto Total 2240 | 41 651 736 267 545 Wait 69 | . 22 . 13 34 Move 1826 | 30 538 706 208 344 Hop . | . . . . . Pick Up 47 | 5 18 15 . 9 Fast Attach 14 | 5 1 3 . 5 Attach 14 | 1 3 . 2 8 Detach 1 | . . . . 1 Swap 36 | . 11 . 4 21 Drop 33 | . 8 7 2 16 Fire 161 | . 50 4 38 69 Melee 36 | . . . . 36 Ram 1 | . . 1 . . Kick . | . . . . . Crush . | . . . . . Escape Stasis 2 | . . . . 2 Rewire . | . . . . . Trap . | . . . . . Miscellaneous . | . . . . . Route ------- -11/Scrapyard -10/Materials (discovered 5 exits: *Mat x3 / *Min x2) -10/Mines (discovered 3 exits: *Mat x2 / [*Exi]) -9/Materials (discovered 2 exits: [*Min] / *Sto) -9/Storage History --------- Turn | Location | Event 11 | -11/Scrapyard | Discovered new exit (range 16) 58 | -11/Scrapyard | Entered Materials 146 | -10/Materials | Discovered new exit (range 16) 266 | -10/Materials | Discovered new exit (range 16) 316 | -10/Materials | Build established: Mutant 320 | -10/Materials | Discovered new exit (range 16) 647 | -10/Materials | Discovered new exit (range 15) 800 | -10/Materials | Discovered new exit (range 15) 843 | -10/Materials | Entered Mines 844 | -10/Mines | Learned location of Storage (-9) 854 | -10/Mines | Met a Derelict bent on vengeance 856 | -10/Mines | Assembled infested the area 1055 | -10/Mines | Discovered new exit (range 3) 1101 | -10/Mines | Received a Rocket Launcher from a helpful Derelict 1131 | -10/Mines | Learned location of Zion (-7) 1163 | -10/Mines | Discovered new exit (range 10) 1177 | -10/Mines | Found the Drone Emporium 1189 | -10/Mines | Found Prototype Device 1189 | -10/Mines | Identified Bomb Drone Bay 1332 | -10/Mines | Discovered new exit (range 5) 1591 | -10/Mines | Learned Materials terminal intel 1734 | -10/Mines | Entered Materials 1734 | -9/Materials | Evolved 2 slots: Propulsion x1, Utility x1 1735 | -9/Materials | Loaded intel: 12 terminal locations 1778 | -9/Materials | Central database locked down 2052 | -9/Materials | Discovered new exit (range 4) 2106 | -9/Materials | Discovered new exit (range 16) 2140 | -9/Materials | Entered Storage 2307 | -9/Storage | Met a pair of Derelict thieves 2441 | -9/Storage | Destroyed 7 combat bots 2577 | -9/Storage | Core integrity fell below 50% 2940 | -9/Storage | First assault squad dispatched 2987 | -9/Storage | Core integrity fell below 20% 2998 | -9/Storage | Lost 5 parts (3n2u) 3053 | -9/Storage | Destroyed 7 combat bots 3066 | -9/Storage | Destroyed by G-34 Mercenary with Small Laser Last Messages --------------- 03051_ Acquired Aluminum Leg. 03051_ R-06 Scavenger inserts Weight Redist. System into recycling unit. 03052_ K-01 Serf collects debris. 03052_ Acquired 10 matter. 03053_ K-01 Serf collects debris. 03054_ R-06 Scavenger inserts Hvy. Ion Engine into recycling unit. 03055_ Recycling unit begins recycling process. 03055_ K-01 Serf collects debris. 03056_ Recycling unit begins matter transfer process. 03057_ K-01 Serf collects debris. 03057_ R-06 Scavenger inserts Hvy. Ion Engine into recycling unit. 03058_ K-01 Serf collects debris. 03060_ Dropped Lrg. Storage Unit. 03060_ R-06 Scavenger inserts Hvy. Ion Engine into recycling unit. 03061_ Recycling unit begins recycling process. 03061_ K-01 Serf collects debris. 03063_ R-06 Scavenger collects Core Shielding. 03063_ Sneak attack on R-06 Scavenger. 03063_ R-06 Scavenger destroyed. 03064_ K-01 Serf collects debris. Map ----- +----------------------------------------------------+ | # %! * # " #?????????????????????? | | """ # = =! =##T# ! #?????????????????????? | | """ # [% =[**#### !!!#?????????????????????? | | """ # ### ## ###??######?????????????????????? | | # # #####%#???????????????????????????????? | | #+#### #######+###?????????????????????????????? | | = # # # ! %%%! %#?????????????????????????????? | | ![ # # #!== %%% #?????????????????????????????? | | * ### # =""""" #?????????????????????????????? | | #?# #%" =**" #?????????????????????????????? | | ### # "=[*[" #?????????????????????????????? | | ##T + """""" #?????????????????????????????? | | ### # ? #?????????????????????????????? | | #?# # #?????????????????????????????? | | #?# ###########?????????????????????????????? | | ### #???????????????????????????????????????? | | #???????????????????????????????????????? | | * *% #???????????????????????????????????????? | | [ #???????????????????????????????????????? | | %%%* #???????????????????????????????????????? | | =% #???????#####??###??????????????????????? | | *! #???????#! #### ####???????????????????? | | *! ##????### ] ## #???????????????????? | | ^ #????+ +% ## [""" #???????????????????? | | #????# # ##!%"Y"*#???????????????????? | | """ #????# #! ##!=@*!!#####+#?????????????? | | """ #????# + ! ## k[%k[+ ???????? | | ^""" #????# #!!*##[![%[m# ???????? | | """ ###### ##+#####/##/# ???????? | | """ !**%**=%[g%=g a ?????????? | | ##### ##########==! ###?????#??????????? | | #???# #????????# = #??????????????????? | | #???# #????????#k #??????????????????? | | ####+###?# #????????# #??????????????????? | | # #?# #????????+ #??????????????????? | | # #?# #????????# ##/#??????????????????? | | # #?# #????????# #? ??????????????????? | | # != #?# #????????# #?? ?????????????????? | | #[ #?# #????????# #??""?????????????????? | | # #?? ?????????# #???""????????????????? | | ########?? ?????????# #?????????????????????? | | #????????? ?????????? ?????????????????????? | | #????????? ??????????####?????????????????????? | | #????????? ???????????????????????????????????? | | #????????? ???????????????????????????????????? | | #????????? ???????????????????????????????????? | | ??????????????????????????????????????????????? | | ??????????????????????????????????????????????? | | ?????????????????????????????????????????????????? | | ?????????????????????????????????????????????????? | +----------------------------------------------------+ Best States ------------- Heat Dissipation 50 Energy Generation 14 Energy Capacity 280 Matter Stores 300 Matter Capacity 300 Sight Range 16 Terrain Scan Density 10 Armor Coverage 225 Evasion (%) 44 Recoil Reduction 2 Item Schematics ----------------- Hcp. Storage Unit | -9/Materials | Hacked Arm. Huge Wheel | -9/Storage | Hacked Robot Schematics ------------------ None Fabricated ------------ Nothing Alien Tech Used ----------------- None Achievements -------------- None Challenges ------------ None Game ------ Seed ShadingTargetBlaster Manual? 0 Play Time 00:31:11 Cumulative 436.3 hours Start 2020.12.13 @ 14:08:54 End 2020.12.13 @ 14:39:03 Sessions 1 Manual Loads 0 Difficulty Rogue Special Mode None Game No. 312 Rogue 312 Adventurer 0 Explorer 0 Win Type - Total 15 Types 13/0/0/2/0/0/0/0/0 Lore% 85 Gallery% 82 Achievement% 67 Wizard Run 0 Options --------- ASCII 0 Keyboard 0 Movement Vi Keybinds 0 Fullscreen 0 Font 16/SmallcapsGlow Map View 76x50 Tactical HUD 1 Map Filters NONE Filters NONE Steam 1 RUN: d53820df-7476-404d-85ab-8f3fdd7c71e7